[Event "*** MasterClass Titled Tuesday Blitz"]
[Site "Chess.com"]
[Date "2017.08.01"]
[Round "6"]
[White "jeaston1"]
[Black "IvaVidenova"]
[Result "0-1"]
[WhiteElo "2205"]
[BlackElo "2441"]
[TimeControl "180+2"]
[EndTime "14:16:14 PDT"]
[Termination "IvaVidenova won by resignation"]

1. d4 {[%clk 0:03:01.9]} 1... Nf6 {[%clk 0:03:00.3]} 2. c4 {[%clk 0:03:03.3]}
2... g6 {[%clk 0:03:01.4]} 3. Nc3 {[%clk 0:03:03.2]} 3... d5 {[%clk 0:03:02.2]}
4. cxd5 {[%clk 0:03:04.9]} 4... Nxd5 {[%clk 0:03:03.5]} 5. e4 {[%clk 0:03:06.5]}
5... Nxc3 {[%clk 0:03:04.1]} 6. bxc3 {[%clk 0:03:08.4]} 6... Bg7 {[%clk
0:03:05.8]} 7. Nf3 {[%clk 0:03:09.8]} 7... c5 {[%clk 0:03:07.1]} 8. Be3 {[%clk
0:03:11]} 8... O-O {[%clk 0:03:06.4]} 9. Rc1 {[%clk 0:03:09.2]} 9... Qa5 {[%clk
0:03:06.9]} 10. Qd2 {[%clk 0:03:10]} 10... Bg4 {[%clk 0:03:06.8]} 11. Be2 {[%clk
0:03:06]} 11... Nd7 {[%clk 0:03:01.5]} 12. d5 {[%clk 0:02:52.6]} 12... c4 {[%clk
0:02:59.5]} 13. Nd4 {[%clk 0:02:45.8]} 13... Bxe2 {[%clk 0:02:57.4]} 14. Qxe2
{[%clk 0:02:46.3]} 14... Ne5 {[%clk 0:02:52.1]} 15. O-O {[%clk 0:02:47]} 15...
b5 {[%clk 0:02:46.1]} 16. Rb1 {[%clk 0:02:41.2]} 16... a6 {[%clk 0:02:43.3]} 17.
Rfc1 {[%clk 0:01:59.6]} 17... Nd3 {[%clk 0:02:38.2]} 18. Rc2 {[%clk 0:01:58.9]}
18... Rac8 {[%clk 0:02:36.1]} 19. a4 {[%clk 0:01:44.2]} 19... bxa4 {[%clk
0:02:34.5]} 20. Nc6 {[%clk 0:01:43.6]} 20... Rxc6 {[%clk 0:02:19.8]} 21. dxc6
{[%clk 0:01:42.8]} 21... Qc7 {[%clk 0:02:18.3]} 22. Bd4 {[%clk 0:01:31.8]} 22...
e5 {[%clk 0:02:08.4]} 23. Be3 {[%clk 0:01:21.8]} 23... Qxc6 {[%clk 0:02:09.2]}
24. Ra2 {[%clk 0:01:22.7]} 24... Qxe4 {[%clk 0:01:59.2]} 25. Rba1 {[%clk
0:01:12.8]} 25... f5 {[%clk 0:01:50.6]} 26. f3 {[%clk 0:01:04.8]} 26... Qd5
{[%clk 0:01:49.5]} 27. Rxa4 {[%clk 0:01:02.3]} 27... e4 {[%clk 0:01:46.8]} 28.
f4 {[%clk 0:00:52.8]} 28... Bxc3 {[%clk 0:01:42.7]} 29. Rd1 {[%clk 0:00:50.5]}
29... Bd4 {[%clk 0:01:40.1]} 30. Rxa6 {[%clk 0:00:40.5]} 30... Nxf4 {[%clk
0:01:31.3]} 31. Qf2 {[%clk 0:00:36.5]} 31... Bxe3 {[%clk 0:01:17.6]} 0-1

[Event "*** MasterClass Titled Tuesday Blitz"]
[Site "Chess.com"]
[Date "2017.08.01"]
[Round "6"]
[White "ChessNinja48"]
[Black "GM_dmitrij"]
[Result "0-1"]
[WhiteElo "2288"]
[BlackElo "2478"]
[TimeControl "180+2"]
[EndTime "14:16:18 PDT"]
[Termination "GM_dmitrij won by resignation"]

1. Nf3 {[%clk 0:03:01.5]} 1... Nf6 {[%clk 0:02:57]} 2. d4 {[%clk 0:03:00.6]}
2... d5 {[%clk 0:02:57.2]} 3. c4 {[%clk 0:03:01.6]} 3... e6 {[%clk 0:02:58.3]}
4. Nc3 {[%clk 0:03:02.4]} 4... Bb4 {[%clk 0:02:58.9]} 5. Bg5 {[%clk 0:03:03.2]}
5... dxc4 {[%clk 0:02:59.5]} 6. e3 {[%clk 0:02:57.4]} 6... b5 {[%clk 0:03:00.4]}
7. a4 {[%clk 0:02:48.1]} 7... c6 {[%clk 0:03:01.4]} 8. Be2 {[%clk 0:02:44]} 8...
Bb7 {[%clk 0:03:01.8]} 9. O-O {[%clk 0:02:44.4]} 9... a6 {[%clk 0:03:02.9]} 10.
e4 {[%clk 0:02:19.9]} 10... h6 {[%clk 0:03:01]} 11. Bh4 {[%clk 0:02:16.9]} 11...
g5 {[%clk 0:02:54.5]} 12. Bg3 {[%clk 0:02:17.3]} 12... Bxc3 {[%clk 0:02:53]} 13.
bxc3 {[%clk 0:02:19.3]} 13... Nxe4 {[%clk 0:02:54.3]} 14. Qc2 {[%clk 0:02:17.6]}
14... Nxg3 {[%clk 0:02:43.8]} 15. fxg3 {[%clk 0:02:14]} 15... Nd7 {[%clk
0:02:45]} 16. Nd2 {[%clk 0:02:13.8]} 16... c5 {[%clk 0:02:41.3]} 17. Bh5 {[%clk
0:01:53]} 17... Nf6 {[%clk 0:02:29.3]} 18. Bf3 {[%clk 0:01:49.1]} 18... Bxf3
{[%clk 0:02:20]} 19. Nxf3 {[%clk 0:01:50.3]} 19... O-O {[%clk 0:02:09.5]} 20.
dxc5 {[%clk 0:01:42]} 20... Qd3 {[%clk 0:02:03]} 21. Qxd3 {[%clk 0:01:24.6]}
21... cxd3 {[%clk 0:02:04.9]} 22. Rfd1 {[%clk 0:01:25.9]} 22... Ne4 {[%clk
0:02:01.2]} 23. axb5 {[%clk 0:01:23.5]} 23... axb5 {[%clk 0:01:56.1]} 24. Rxa8
{[%clk 0:00:45.9]} 24... Rxa8 {[%clk 0:01:58]} 25. Ne5 {[%clk 0:00:47.1]} 25...
d2 {[%clk 0:01:36.7]} 26. Kf1 {[%clk 0:00:38.8]} 26... Nxc3 {[%clk 0:01:27.4]}
27. Rxd2 {[%clk 0:00:40.1]} 27... Ra1+ {[%clk 0:01:28.1]} 28. Kf2 {[%clk
0:00:41.7]} 28... Ne4+ {[%clk 0:01:29.3]} 29. Ke3 {[%clk 0:00:43.3]} 29... Nxd2
{[%clk 0:01:30.6]} 30. Kxd2 {[%clk 0:00:45.3]} 30... Kf8 {[%clk 0:01:25]} 31. c6
{[%clk 0:00:41.9]} 31... Ra8 {[%clk 0:01:12.3]} 32. Nd7+ {[%clk 0:00:41.4]}
32... Ke7 {[%clk 0:01:12.3]} 33. Nb6 {[%clk 0:00:43.4]} 33... Rd8+ {[%clk
0:01:10.8]} 0-1

[Event "*** MasterClass Titled Tuesday Blitz"]
[Site "Chess.com"]
[Date "2017.08.01"]
[Round "6"]
[White "Spartakus1975"]
[Black "1lec"]
[Result "1/2-1/2"]
[WhiteElo "2532"]
[BlackElo "2061"]
[TimeControl "180+2"]
[EndTime "14:16:34 PDT"]
[Termination "Game drawn by repetition"]

1. e4 {[%clk 0:03:00.6]} 1... c5 {[%clk 0:03:01]} 2. c3 {[%clk 0:03:01.2]} 2...
d5 {[%clk 0:03:01.4]} 3. exd5 {[%clk 0:03:02.6]} 3... Qxd5 {[%clk 0:03:03.4]} 4.
d4 {[%clk 0:03:03.8]} 4... Nc6 {[%clk 0:03:05.1]} 5. Nf3 {[%clk 0:03:04.9]} 5...
Bf5 {[%clk 0:03:06.8]} 6. Be3 {[%clk 0:03:03.6]} 6... e6 {[%clk 0:02:57.4]} 7.
Nbd2 {[%clk 0:02:47.1]} 7... cxd4 {[%clk 0:02:52.5]} 8. Bc4 {[%clk 0:02:44.7]}
8... dxe3 {[%clk 0:02:39.8]} 9. Bxd5 {[%clk 0:02:44.7]} 9... exd2+ {[%clk
0:02:41.2]} 10. Qxd2 {[%clk 0:02:45.9]} 10... exd5 {[%clk 0:02:42.3]} 11. Qxd5
{[%clk 0:02:36.3]} 11... Be6 {[%clk 0:02:35.5]} 12. Qb5 {[%clk 0:02:36.9]} 12...
O-O-O {[%clk 0:02:32.2]} 13. O-O {[%clk 0:02:37.8]} 13... Nf6 {[%clk 0:02:30.9]}
14. Rad1 {[%clk 0:02:35.3]} 14... a6 {[%clk 0:02:18]} 15. Rxd8+ {[%clk
0:02:32.4]} 15... Nxd8 {[%clk 0:02:16.7]} 16. Qb6 {[%clk 0:02:32.4]} 16... Nc6
{[%clk 0:02:09.3]} 17. Ng5 {[%clk 0:02:26.7]} 17... Bc4 {[%clk 0:01:50.2]} 18.
Rd1 {[%clk 0:02:23.5]} 18... Nd5 {[%clk 0:01:37.8]} 19. Rxd5 {[%clk 0:02:24.4]}
19... Bxd5 {[%clk 0:01:38.9]} 20. b3 {[%clk 0:02:25.9]} 20... f6 {[%clk
0:01:31.8]} 21. Nh3 {[%clk 0:02:23.7]} 21... Bd6 {[%clk 0:01:28.9]} 22. c4
{[%clk 0:02:24.8]} 22... Be6 {[%clk 0:01:28.1]} 23. Qe3 {[%clk 0:02:19]} 23...
Re8 {[%clk 0:01:19.1]} 24. Qd3 {[%clk 0:02:14.3]} 24... Bxc4 {[%clk 0:00:49.1]}
25. Qf5+ {[%clk 0:02:10.7]} 25... Kc7 {[%clk 0:00:46.9]} 26. g3 {[%clk
0:01:56.8]} 26... Bg8 {[%clk 0:00:26.5]} 27. Nf4 {[%clk 0:01:54.8]} 27... Bxf4
{[%clk 0:00:18.8]} 28. Qxf4+ {[%clk 0:01:55.4]} 28... Ne5 {[%clk 0:00:20.4]} 29.
Qc1+ {[%clk 0:01:43.7]} 29... Kb8 {[%clk 0:00:20.8]} 30. Kg2 {[%clk 0:01:43.4]}
30... Bd5+ {[%clk 0:00:21.4]} 31. Kh3 {[%clk 0:01:43.3]} 31... Be6+ {[%clk
0:00:21.3]} 32. Kg2 {[%clk 0:01:44.2]} 32... Rc8 {[%clk 0:00:22.3]} 33. Qa3
{[%clk 0:01:42.5]} 33... Bd5+ {[%clk 0:00:15.9]} 34. Kh3 {[%clk 0:01:42.4]}
34... Be6+ {[%clk 0:00:11.4]} 35. Kg2 {[%clk 0:01:43.5]} 35... Bd5+ {[%clk
0:00:07.7]} 36. Kh3 {[%clk 0:01:44.5]} 36... Be6+ {[%clk 0:00:09.2]} 37. Kg2
{[%clk 0:01:43.8]} 37... Bd5+ {[%clk 0:00:10.6]} 1/2-1/2

[Event "*** MasterClass Titled Tuesday Blitz"]
[Site "Chess.com"]
[Date "2017.08.01"]
[Round "6"]
[White "Cocovitsch007"]
[Black "Me_ch_an"]
[Result "0-1"]
[WhiteElo "2217"]
[BlackElo "2389"]
[TimeControl "180+2"]
[EndTime "14:16:38 PDT"]
[Termination "Me_ch_an won by checkmate"]

1. Nf3 {[%clk 0:03:01.9]} 1... d5 {[%clk 0:03:00.2]} 2. e3 {[%clk 0:03:02.5]}
2... c5 {[%clk 0:03:00.2]} 3. b3 {[%clk 0:03:02.5]} 3... Nf6 {[%clk 0:03:00.7]}
4. Bb2 {[%clk 0:03:03]} 4... Nc6 {[%clk 0:03:01.5]} 5. Bb5 {[%clk 0:03:03.2]}
5... Bg4 {[%clk 0:02:59.2]} 6. h3 {[%clk 0:03:03.3]} 6... Bh5 {[%clk 0:02:59.1]}
7. Bxc6+ {[%clk 0:03:02.7]} 7... bxc6 {[%clk 0:02:59.8]} 8. g4 {[%clk
0:03:03.2]} 8... Bg6 {[%clk 0:03:00.9]} 9. Ne5 {[%clk 0:03:04]} 9... Qc7 {[%clk
0:03:00]} 10. d3 {[%clk 0:02:55]} 10... e6 {[%clk 0:03:00.5]} 11. f4 {[%clk
0:02:54.5]} 11... Bd6 {[%clk 0:03:00.5]} 12. Nd2 {[%clk 0:02:54]} 12... a5
{[%clk 0:02:53.7]} 13. a4 {[%clk 0:02:53.7]} 13... Rd8 {[%clk 0:02:39.8]} 14.
Qe2 {[%clk 0:02:46.3]} 14... Rb8 {[%clk 0:02:33.2]} 15. O-O {[%clk 0:02:38.7]}
15... O-O {[%clk 0:02:27.9]} 16. Ndf3 {[%clk 0:02:29.1]} 16... Nd7 {[%clk
0:01:59.4]} 17. Nxd7 {[%clk 0:02:16.7]} 17... Qxd7 {[%clk 0:02:01.3]} 18. Ne5
{[%clk 0:02:17.8]} 18... Qc7 {[%clk 0:02:02.1]} 19. h4 {[%clk 0:02:12.5]} 19...
f6 {[%clk 0:01:58.7]} 20. Nxg6 {[%clk 0:02:11.2]} 20... hxg6 {[%clk 0:02:00.6]}
21. h5 {[%clk 0:01:55.5]} 21... Kf7 {[%clk 0:01:53.9]} 22. hxg6+ {[%clk
0:01:55]} 22... Ke7 {[%clk 0:01:50.7]} 23. Kg2 {[%clk 0:01:52.6]} 23... e5
{[%clk 0:01:50.8]} 24. f5 {[%clk 0:01:47.4]} 24... Rh8 {[%clk 0:01:50.7]} 25.
Rh1 {[%clk 0:01:47.6]} 25... e4 {[%clk 0:01:45.8]} 26. dxe4 {[%clk 0:01:47.1]}
26... Be5 {[%clk 0:01:46.7]} 27. Ba3 {[%clk 0:01:41.5]} 27... Bxa1 {[%clk
0:01:41.7]} 28. Bxc5+ {[%clk 0:01:41.7]} 28... Kd7 {[%clk 0:01:42.9]} 29. exd5
{[%clk 0:00:57.7]} 29... cxd5 {[%clk 0:01:41.7]} 30. Qa6 {[%clk 0:00:44.9]}
30... Qxc5 {[%clk 0:01:23.8]} 31. Qe6+ {[%clk 0:00:42.7]} 31... Kc7 {[%clk
0:01:24.8]} 32. Rd1 {[%clk 0:00:21.4]} 32... Qxc2+ {[%clk 0:01:23.1]} 33. Kg3
{[%clk 0:00:20.8]} 33... Be5+ {[%clk 0:01:20.9]} 34. Kf3 {[%clk 0:00:21.6]}
34... Rh3# {[%clk 0:01:20.6]} 0-1

[Event "*** MasterClass Titled Tuesday Blitz"]
[Site "Chess.com"]
[Date "2017.08.01"]
[Round "6"]
[White "FMVolodymyrSakun"]
[Black "Witik"]
[Result "1-0"]
[WhiteElo "2544"]
[BlackElo "2582"]
[TimeControl "180+2"]
[EndTime "14:16:56 PDT"]
[Termination "FMVolodymyrSakun won by resignation"]

1. e4 {[%clk 0:03:01.9]} 1... c6 {[%clk 0:03:00.5]} 2. d4 {[%clk 0:03:01.9]}
2... d5 {[%clk 0:03:02]} 3. e5 {[%clk 0:03:03]} 3... Bf5 {[%clk 0:03:02.7]} 4.
Nf3 {[%clk 0:03:04.2]} 4... e6 {[%clk 0:03:03.6]} 5. Be2 {[%clk 0:03:05.4]} 5...
c5 {[%clk 0:03:03.5]} 6. O-O {[%clk 0:03:01]} 6... Nc6 {[%clk 0:03:04.3]} 7.
dxc5 {[%clk 0:02:56.5]} 7... Bxc5 {[%clk 0:03:04.8]} 8. a3 {[%clk 0:02:51.7]}
8... a6 {[%clk 0:02:48.1]} 9. b4 {[%clk 0:02:45.9]} 9... Ba7 {[%clk 0:02:48.7]}
10. Bb2 {[%clk 0:02:36.5]} 10... Nge7 {[%clk 0:02:42.6]} 11. Nbd2 {[%clk
0:02:34.3]} 11... Bg6 {[%clk 0:02:37.2]} 12. c4 {[%clk 0:02:29.9]} 12... O-O
{[%clk 0:02:35.7]} 13. c5 {[%clk 0:02:27.1]} 13... Rc8 {[%clk 0:02:30.7]} 14.
Rc1 {[%clk 0:02:21.8]} 14... Bb8 {[%clk 0:02:31.5]} 15. Re1 {[%clk 0:02:19.3]}
15... f6 {[%clk 0:02:29.3]} 16. exf6 {[%clk 0:02:17.1]} 16... gxf6 {[%clk
0:02:30.2]} 17. Bf1 {[%clk 0:02:14.4]} 17... e5 {[%clk 0:02:27.5]} 18. Nh4
{[%clk 0:02:11.3]} 18... Rf7 {[%clk 0:02:21.3]} 19. Qg4 {[%clk 0:02:07.2]} 19...
f5 {[%clk 0:02:17.1]} 20. Qg5 {[%clk 0:02:05.3]} 20... Qf8 {[%clk 0:02:11.9]}
21. Ndf3 {[%clk 0:01:58.1]} 21... d4 {[%clk 0:02:03.4]} 22. Bc4 {[%clk
0:01:52.9]} 22... Kh8 {[%clk 0:01:47.7]} 23. Bxf7 {[%clk 0:01:51.1]} 23... Qxf7
{[%clk 0:01:46.2]} 24. a4 {[%clk 0:01:47.6]} 24... Rg8 {[%clk 0:01:41.4]} 25. b5
{[%clk 0:01:45.2]} 25... axb5 {[%clk 0:01:36.2]} 26. axb5 {[%clk 0:01:45.8]}
26... Bh5 {[%clk 0:01:37.4]} 27. Qh6 {[%clk 0:01:40.3]} 27... Bxf3 {[%clk
0:01:20.9]} 28. Nxf3 {[%clk 0:01:39.5]} 28... Rg6 {[%clk 0:01:21.7]} 29. Qh3
{[%clk 0:01:34.5]} 29... Nd5 {[%clk 0:01:13.9]} 30. Nh4 {[%clk 0:01:22.7]} 30...
Nf4 {[%clk 0:00:46.3]} 31. Nxg6+ {[%clk 0:01:21.7]} 31... Qxg6 {[%clk
0:00:47.4]} 32. Qg3 {[%clk 0:01:20.1]} 32... Ne7 {[%clk 0:00:35.3]} 33. Qxg6
{[%clk 0:01:16.6]} 33... hxg6 {[%clk 0:00:33.9]} 34. Bxd4 {[%clk 0:01:14.5]}
34... Nd3 {[%clk 0:00:32.6]} 35. Bc3 {[%clk 0:01:08.6]} 35... Nxe1 {[%clk
0:00:30.9]} 36. Rxe1 {[%clk 0:01:09]} 1-0

[Event "*** MasterClass Titled Tuesday Blitz"]
[Site "Chess.com"]
[Date "2017.08.01"]
[Round "6"]
[White "GasconJR"]
[Black "beastfromweast"]
[Result "0-1"]
[WhiteElo "2335"]
[BlackElo "2300"]
[TimeControl "180+2"]
[EndTime "14:17:18 PDT"]
[Termination "beastfromweast won by resignation"]

1. e4 {[%clk 0:03:01.9]} 1... c5 {[%clk 0:03:00.5]} 2. Nf3 {[%clk 0:03:02.3]}
2... d6 {[%clk 0:03:01.8]} 3. d4 {[%clk 0:03:00.8]} 3... cxd4 {[%clk 0:03:02.5]}
4. Nxd4 {[%clk 0:02:59]} 4... Nf6 {[%clk 0:03:03.2]} 5. Nc3 {[%clk 0:02:59.2]}
5... a6 {[%clk 0:03:04.7]} 6. Nb3 {[%clk 0:02:57.8]} 6... e6 {[%clk 0:02:59.2]}
7. g4 {[%clk 0:02:53.9]} 7... b5 {[%clk 0:02:54.2]} 8. g5 {[%clk 0:02:53.8]}
8... Nfd7 {[%clk 0:02:54.5]} 9. Bg2 {[%clk 0:02:52.1]} 9... Bb7 {[%clk
0:02:54.8]} 10. a3 {[%clk 0:02:45.1]} 10... Be7 {[%clk 0:02:54.4]} 11. f4 {[%clk
0:02:45.5]} 11... Qb6 {[%clk 0:02:46]} 12. Qe2 {[%clk 0:02:44.7]} 12... Nc6
{[%clk 0:02:36.9]} 13. Be3 {[%clk 0:02:44.4]} 13... Qc7 {[%clk 0:02:37.4]} 14.
O-O {[%clk 0:02:40.2]} 14... O-O {[%clk 0:02:31.2]} 15. Rf3 {[%clk 0:02:35.2]}
15... Rfe8 {[%clk 0:02:24.7]} 16. Rh3 {[%clk 0:02:34.4]} 16... g6 {[%clk
0:02:25.3]} 17. Rf1 {[%clk 0:02:31.5]} 17... Bf8 {[%clk 0:02:22.4]} 18. f5
{[%clk 0:02:28.2]} 18... exf5 {[%clk 0:02:22.4]} 19. Nd5 {[%clk 0:02:28.4]}
19... Qd8 {[%clk 0:02:15.4]} 20. Qf2 {[%clk 0:02:25.5]} 20... Nce5 {[%clk
0:02:09.5]} 21. Bb6 {[%clk 0:02:20.3]} 21... Qxg5 {[%clk 0:02:04.8]} 22. Nc7
{[%clk 0:02:16.7]} 22... Bxe4 {[%clk 0:01:59]} 23. Nxa8 {[%clk 0:02:12.3]} 23...
Rxa8 {[%clk 0:01:57.2]} 24. Be3 {[%clk 0:02:08.7]} 24... Qe7 {[%clk 0:01:48.1]}
25. Nd4 {[%clk 0:01:52.4]} 25... Ng4 {[%clk 0:01:46.2]} 26. Qg3 {[%clk
0:01:47.9]} 26... Bxg2 {[%clk 0:01:43.1]} 27. Qxg2 {[%clk 0:01:46.2]} 27... Re8
{[%clk 0:01:28.1]} 28. Bd2 {[%clk 0:01:43.6]} 28... Bg7 {[%clk 0:01:27]} 29. c3
{[%clk 0:01:43.3]} 29... Bxd4+ {[%clk 0:01:20.6]} 30. cxd4 {[%clk 0:01:43.8]}
30... Ndf6 {[%clk 0:01:20.6]} 31. Rc3 {[%clk 0:01:41.6]} 31... Ne4 {[%clk
0:01:19.7]} 32. Rc6 {[%clk 0:00:39.1]} 32... Qa7 {[%clk 0:01:08.1]} 33. Bc3
{[%clk 0:00:35.4]} 33... Qb7 {[%clk 0:01:03.3]} 34. d5 {[%clk 0:00:35.5]} 34...
Qa7+ {[%clk 0:01:03.7]} 35. Kh1 {[%clk 0:00:26.7]} 35... Nef2+ {[%clk 0:01:02]}
36. Kg1 {[%clk 0:00:27]} 36... Nh3+ {[%clk 0:01:01.7]} 37. Kh1 {[%clk
0:00:28.1]} 37... Ngf2+ {[%clk 0:01:02.9]} 38. Rxf2 {[%clk 0:00:26.4]} 38...
Nxf2+ {[%clk 0:01:02.8]} 39. Kg1 {[%clk 0:00:27.4]} 39... Ne4+ {[%clk
0:01:03.2]} 40. Kh1 {[%clk 0:00:27.1]} 40... Nxc3 {[%clk 0:01:03.8]} 0-1

[Event "*** MasterClass Titled Tuesday Blitz"]
[Site "Chess.com"]
[Date "2017.08.01"]
[Round "6"]
[White "kleinebeer98"]
[Black "Vrolijk"]
[Result "0-1"]
[WhiteElo "2447"]
[BlackElo "2507"]
[TimeControl "180+2"]
[EndTime "14:17:46 PDT"]
[Termination "Vrolijk won by resignation"]

1. e4 {[%clk 0:03:01.9]} 1... Nf6 {[%clk 0:03:00.5]} 2. Nc3 {[%clk 0:03:02.4]}
2... d5 {[%clk 0:02:57.4]} 3. exd5 {[%clk 0:03:04.3]} 3... Nxd5 {[%clk 0:02:58]}
4. Qf3 {[%clk 0:03:06.2]} 4... Nxc3 {[%clk 0:02:56.8]} 5. Bc4 {[%clk 0:03:07.9]}
5... e6 {[%clk 0:02:54.6]} 6. bxc3 {[%clk 0:03:07.4]} 6... Bd6 {[%clk 0:02:53]}
7. d4 {[%clk 0:03:06.9]} 7... O-O {[%clk 0:02:53.4]} 8. Bd3 {[%clk 0:03:07.2]}
8... e5 {[%clk 0:02:47.1]} 9. Ne2 {[%clk 0:03:04]} 9... Nc6 {[%clk 0:02:44.4]}
10. O-O {[%clk 0:03:02.4]} 10... f5 {[%clk 0:02:45.2]} 11. Qh3 {[%clk 0:02:44]}
11... Kh8 {[%clk 0:02:19.6]} 12. dxe5 {[%clk 0:02:31.4]} 12... Nxe5 {[%clk
0:02:20.2]} 13. Nf4 {[%clk 0:02:33.3]} 13... g5 {[%clk 0:02:12]} 14. Nd5 {[%clk
0:02:24.3]} 14... Be6 {[%clk 0:02:05.5]} 15. c4 {[%clk 0:02:23.1]} 15... Nxd3
{[%clk 0:01:57.5]} 16. cxd3 {[%clk 0:02:22.2]} 16... Be5 {[%clk 0:01:58.6]} 17.
Ba3 {[%clk 0:01:46.3]} 17... Bxd5 {[%clk 0:01:35.1]} 18. cxd5 {[%clk 0:01:46.1]}
18... Bxa1 {[%clk 0:01:34.3]} 19. Rxa1 {[%clk 0:01:43.3]} 19... Rf7 {[%clk
0:01:30.2]} 20. Qh6 {[%clk 0:01:29.1]} 20... Kg8 {[%clk 0:01:09.5]} 21. Bb2
{[%clk 0:01:26.7]} 21... Qe7 {[%clk 0:01:00.9]} 22. h3 {[%clk 0:01:25.1]} 22...
Rd8 {[%clk 0:00:58.5]} 23. Rc1 {[%clk 0:01:10.1]} 23... Rd6 {[%clk 0:00:55.9]}
24. Qh5 {[%clk 0:01:08.4]} 24... Rxd5 {[%clk 0:00:55.2]} 25. Kh2 {[%clk
0:01:02.6]} 25... c6 {[%clk 0:00:48.9]} 26. Bc3 {[%clk 0:00:54.6]} 26... Rxd3
{[%clk 0:00:38.7]} 27. Re1 {[%clk 0:00:54.5]} 27... Qc7+ {[%clk 0:00:37.8]} 28.
Be5 {[%clk 0:00:31.8]} 28... Qd8 {[%clk 0:00:36.4]} 29. Ba1 {[%clk 0:00:28.5]}
29... Rd6 {[%clk 0:00:34.1]} 30. Qe2 {[%clk 0:00:25.2]} 30... Rg6 {[%clk
0:00:32.8]} 31. Qb2 {[%clk 0:00:26.1]} 31... Qf6 {[%clk 0:00:29.5]} 32. Re8+
{[%clk 0:00:26.4]} 32... Rf8 {[%clk 0:00:21.6]} 33. Qb3+ {[%clk 0:00:27]} 33...
Qf7 {[%clk 0:00:21.6]} 34. Qc3 {[%clk 0:00:16]} 34... Qxe8 {[%clk 0:00:22.1]}
35. Qh8+ {[%clk 0:00:17.5]} 35... Kf7 {[%clk 0:00:23.6]} 36. Qxh7+ {[%clk
0:00:19.4]} 36... Ke6 {[%clk 0:00:25.1]} 37. Qxb7 {[%clk 0:00:20.4]} 37... Qb8+
{[%clk 0:00:25.9]} 0-1

[Event "*** MasterClass Titled Tuesday Blitz"]
[Site "Chess.com"]
[Date "2017.08.01"]
[Round "6"]
[White "TregubovP"]
[Black "igorkovalenko"]
[Result "0-1"]
[WhiteElo "2510"]
[BlackElo "2670"]
[TimeControl "180+2"]
[EndTime "14:17:47 PDT"]
[Termination "igorkovalenko won on time"]

1. d4 {[%clk 0:03:01.9]} 1... d5 {[%clk 0:02:56.7]} 2. c4 {[%clk 0:03:02.7]}
2... e6 {[%clk 0:02:55.3]} 3. Nc3 {[%clk 0:03:01.5]} 3... c6 {[%clk 0:02:55.9]}
4. e4 {[%clk 0:02:58.3]} 4... dxe4 {[%clk 0:02:56.5]} 5. Nxe4 {[%clk 0:03:00]}
5... Bb4+ {[%clk 0:02:58]} 6. Nc3 {[%clk 0:03:01.7]} 6... e5 {[%clk 0:02:54.9]}
7. dxe5 {[%clk 0:03:00.5]} 7... Qxd1+ {[%clk 0:02:55.5]} 8. Kxd1 {[%clk
0:03:01.7]} 8... Bf5 {[%clk 0:02:49.3]} 9. Bd2 {[%clk 0:02:56.7]} 9... Nd7
{[%clk 0:02:49.9]} 10. a3 {[%clk 0:02:56.9]} 10... Bc5 {[%clk 0:02:47.5]} 11. f4
{[%clk 0:02:55]} 11... O-O-O {[%clk 0:02:46.5]} 12. Nf3 {[%clk 0:02:53.4]} 12...
Nh6 {[%clk 0:02:46.9]} 13. h3 {[%clk 0:02:53.5]} 13... f6 {[%clk 0:02:29.4]} 14.
g4 {[%clk 0:02:53.6]} 14... fxe5 {[%clk 0:02:08.4]} 15. gxf5 {[%clk 0:02:54]}
15... Nxf5 {[%clk 0:02:10.3]} 16. Bd3 {[%clk 0:02:46.9]} 16... Ng3 {[%clk
0:02:06.9]} 17. Re1 {[%clk 0:02:47.6]} 17... Bf2 {[%clk 0:02:05.7]} 18. Kc2
{[%clk 0:02:47]} 18... Bxe1 {[%clk 0:02:02.4]} 19. Rxe1 {[%clk 0:02:47.7]} 19...
Nc5 {[%clk 0:02:01.7]} 20. Nxe5 {[%clk 0:02:43.4]} 20... Nxd3 {[%clk 0:02:01.2]}
21. Nxd3 {[%clk 0:02:44]} 21... Nf5 {[%clk 0:02:01.3]} 22. Ne5 {[%clk
0:02:36.5]} 22... Rhe8 {[%clk 0:01:56.5]} 23. Bc1 {[%clk 0:02:32.7]} 23... Re6
{[%clk 0:01:47.8]} 24. Ne4 {[%clk 0:02:26.2]} 24... Rde8 {[%clk 0:01:30.4]} 25.
Ng5 {[%clk 0:02:21.4]} 25... Rh6 {[%clk 0:01:22.5]} 26. Rd1 {[%clk 0:02:06.4]}
26... Rh5 {[%clk 0:01:20.2]} 27. Ne4 {[%clk 0:01:18.1]} 27... Rxh3 {[%clk
0:01:17.4]} 28. Nd6+ {[%clk 0:01:16.4]} 28... Nxd6 {[%clk 0:01:17.2]} 29. Rxd6
{[%clk 0:01:18.1]} 29... g5 {[%clk 0:01:15.9]} 30. Rf6 {[%clk 0:01:09.4]} 30...
h5 {[%clk 0:01:02.2]} 31. Nf7 {[%clk 0:01:02.3]} 31... Re2+ {[%clk 0:01:03]} 32.
Kd1 {[%clk 0:01:03.6]} 32... Rg2 {[%clk 0:01:02.1]} 33. Bd2 {[%clk 0:00:38.6]}
33... Rh1+ {[%clk 0:01:01.8]} 34. Be1 {[%clk 0:00:38.6]} 34... g4 {[%clk
0:00:54.6]} 35. Nd6+ {[%clk 0:00:35.9]} 35... Kd7 {[%clk 0:00:55.1]} 36. c5
{[%clk 0:00:36.9]} 36... Rgg1 {[%clk 0:00:53.1]} 37. Rf7+ {[%clk 0:00:36.5]}
37... Ke6 {[%clk 0:00:54.1]} 38. f5+ {[%clk 0:00:37.9]} 38... Kd5 {[%clk
0:00:55.5]} 39. Re7 {[%clk 0:00:38.7]} 39... g3 {[%clk 0:00:54.8]} 0-1